fUSD/lending_fUSD_20251110
["ID","MTS","AMOUNT","RATE_DAILY","PERIOD"]
[393568275,1762805450684,-553.62035377,0.00016773,2]
[393568276,1762805450694,-500.0,0.00016773,2]
[393568277,1762805450703,-10095.71366557,0.00016809,2]
[393568278,1762805450713,-13356.50998253,0.00016809,2]
[393568279,1762805450723,-574.22511786,0.00016848,2]
[393568280,1762805450733,-1166.33,0.00016909,2]
[393568281,1762805450743,-1000.0,0.00016921,2]
[393568282,1762805450754,-500.0,0.00016921,2]
[393568283,1762805450763,-1000.0,0.00016921,2]
[393568284,1762805450772,-532.75071884,0.00016921,2]
[393568285,1762805450783,-10095.71366557,0.00016946,2]
[393568286,1762805450794,-13356.50998253,0.00016946,2]
[393568287,1762805450804,-5651.69,0.00016946,2]
[393568288,1762805450814,-1000.0,0.00017,2]
[393568289,1762805450823,-574.22511786,0.00017024,2]
[393568290,1762805450834,-10095.71366557,0.00017082,2]
[393568291,1762805450844,-13356.50998253,0.00017082,2]
[393568292,1762805450854,-1166.33,0.00017183,2]
[393568293,1762805450863,-574.22511786,0.00017199,2]
[393568294,1762805450872,-10095.71366557,0.00017218,2]
[393568295,1762805450882,-200.0,0.00017295,2]
[393568296,1762805450891,-900.0,0.000173,6]
[393568297,1762805450900,-979.88498486,0.00017321,2]
[393568298,1762805450909,-1000.0,0.00017321,2]
[393568299,1762805450919,-741.85895381,0.00017321,2]
[393568300,1762805450928,-351.16553114,0.00017321,2]
[393568301,1762805450938,-1000.0,0.00017321,2]
[393568302,1762805450947,-503.66666773,0.00017321,2]
[393568303,1762805450956,-12742.58,0.00017324,2]
[393568304,1762805450967,-411.66,0.00017347,2]
[393568305,1762805450976,-1155.0,0.00017353,2]
[393568306,1762805450986,-10095.71366557,0.00017355,2]
[393568307,1762805450996,-255.52244811,0.00017363,2]
[393568308,1762805451008,-195.0,0.00017363,2]
[393568309,1762805451018,-300.0,0.00017363,2]
[393568310,1762805451029,-574.22511786,0.00017374,2]
[393568311,1762805451038,-1800.0,0.000174,6]
[393568312,1762805451047,-195.0,0.00017412,2]
[393568313,1762805451061,-195.0,0.00017412,2]
[393568314,1762805451071,-300.0,0.00017412,2]
[393568315,1762805451080,-675.57673767,0.00017412,4]
[393568316,1762805451090,-150.09578015,0.00017412,2]
[393568317,1762805451100,-2566.71913452,0.00017412,2]
[393568318,1762805451109,-1680.0,0.00017441,2]
[393568319,1762805451119,-1166.33,0.00017457,2]
[393568320,1762805451131,-491.00198202,0.00017468,2]
[393568321,1762805451141,-556.0,0.00017471,2]
[393568322,1762805451150,-10095.71366557,0.00017491,2]
[393568323,1762805451159,-2700.0,0.000175,6]
[393568324,1762805451168,-195.0,0.00017507,2]
[393568325,1762805451178,-250.0,0.00017507,2]
[393568326,1762805451187,-574.22511786,0.00017549,2]
[393568327,1762805451196,-221.96065187,0.00017563,2]
[393568328,1762805451205,-3600.0,0.000176,6]
[393568329,1762805451215,-10095.71366557,0.00017627,2]
[393568330,1762805451224,-4500.0,0.000177,6]
[393568331,1762805451234,-574.22511786,0.00017725,2]
[393568332,1762805451244,-1166.33,0.00017731,2]
[393568333,1762805451254,-10095.71366557,0.00017764,2]
[393568334,1762805451264,-1000.0,0.00017778,2]
[393568335,1762805451273,-3001.5838,0.00017789,2]
[393568336,1762805451283,-1727.02579728,0.0001779,2]
[393568337,1762805451293,-900.0,0.000178,6]
[393568338,1762805451302,-1500.0,0.00017868,2]
[393568339,1762805451312,-357.95831871,0.00017868,2]
[393568340,1762805451322,-5000.0,0.00017887,2]
[393568341,1762805451331,-385.02836156,0.0001789,2]
[393568342,1762805451341,-385.02836154,0.00017895,2]
[393568343,1762805451350,-170.72806349,0.000179,2]
[393568344,1762805451359,-175.8821942,0.000179,2]
[393568345,1762805451368,-289.68545372,0.000179,2]
[393568346,1762805451378,-900.0,0.000179,6]
[393568347,1762805451388,-10095.71366557,0.000179,2]
[393568348,1762805451398,-515.48109774,0.000179,2]
[393568349,1762805451408,-574.22511786,0.000179,2]
[393568350,1762805451418,-385.02836154,0.000179,2]
[393568351,1762805451428,-3002.65770191,0.00017938,2]
[393568352,1762805451437,-504.41412452,0.00017973,2]
[393568353,1762805451447,-205.31206686,0.00017973,2]
[393568354,1762805451457,-500.46545662,0.00017973,2]
[393568355,1762805451466,-150.00946095,0.00017973,2]
[393568356,1762805451476,-500.0,0.00017973,2]
[393568357,1762805451486,-500.0,0.00017973,2]
[393568358,1762805451495,-500.0,0.00017973,2]
[393568359,1762805451504,-300.0,0.00017973,2]
[393568360,1762805451516,-2065.0,0.00017987,2]
[393568361,1762805451526,-166.9142312,0.00017987,2]
[393568362,1762805451535,-4554.3097097,0.00017987,2]
[393568363,1762805451544,-5316.215765,0.00017987,2]
[393568364,1762805451553,-64334.4026874,0.00017987,2]
[393568365,1762805451563,-220.81623409,0.0001799,2]
[393568366,1762805451573,-220.81623409,0.0001799,2]
[393568367,1762805451583,-220.81623409,0.0001799,2]
[393568368,1762805451592,-572.45,0.00017999,2]
[393568369,1762805451603,-500.0,0.00017999,2]
[393568370,1762805451613,-183.69568692,0.00017999,2]
[393568371,1762805451624,-500.0,0.00017999,2]
[393568372,1762805451634,-500.0,0.00017999,2]
[393568373,1762805451644,-500.0,0.00017999,2]
[393568374,1762805451654,-500.0,0.00017999,2]
[393568375,1762805451663,-500.0,0.00017999,2]
[393568376,1762805451673,-419.48,0.00017999,2]
[393568377,1762805451682,-500.0,0.00017999,2]
[393568378,1762805451693,-500.0,0.00017999,2]
[393568379,1762805451703,-500.0,0.00017999,2]
[393568380,1762805451713,-500.0,0.00017999,2]
[393568381,1762805451723,-300.0,0.00017999,2]
[393568382,1762805451733,-500.0,0.00017999,2]
[393568383,1762805451742,-500.0,0.00017999,2]
[393568384,1762805451751,-514.28691293,0.00017999,2]
[393568385,1762805451761,-500.0,0.00017999,2]
[393568386,1762805451770,-500.0,0.00017999,2]
[393568387,1762805451780,-500.0,0.00017999,2]
[393568388,1762805451791,-500.0,0.00017999,2]
[393568389,1762805451802,-500.0,0.00017999,2]
[393568390,1762805451813,-500.0,0.00017999,2]
[393568391,1762805451825,-550.62677967,0.00017999,2]
[393568392,1762805451837,-500.0,0.00017999,2]
[393568393,1762805451846,-500.0,0.00017999,2]
[393568394,1762805451856,-365685.56949749,0.00018,2]
[393568395,1762805451869,-724.43463065,0.00018,2]
[393568396,1762805451881,-622.08775657,0.00018,2]
[393568397,1762805451891,-17604.28231714,0.00018,2]
[393568398,1762805451903,-4987.25782081,0.00018,2]
[393568399,1762805451915,-1990.0281236,0.00018,2]
[393568400,1762805451927,-3636.82058928,0.00018,2]
[393568401,1762805451978,-937.05173113,0.00017218,2]
[393568402,1762805451992,-861.7705192,0.00017218,2]
[393568403,1762805452020,-5479.3888115,0.00017218,2]
[393568404,1762805452052,-6078.2989207,0.00017218,2]
[393568405,1762805452065,-25048.98039034,0.00018,2]
[393568406,1762805452075,-6060764.23269668,0.00018,2]
[393568407,1762805452184,-364.25,0.00018,2]
[393568408,1762805452195,-4800.0,0.00018,2]
[393568409,1762805452206,-11030.0,0.00018,2]
[393568410,1762805452290,-164.41830001,0.00018,2]
[393568411,1762805452383,-3465.0,0.00017355,2]
[393568412,1762805452394,-560.22680171,0.00017355,2]
[393568413,1762805452405,-596.86146136,0.00017355,2]
[393568414,1762805452418,-8734.42171946,0.00017355,2]
[393568415,1762805452427,-911.7884064,0.00018,2]
[393568416,1762805452438,-10740.91902,0.00018,2]
[393568417,1762805452449,-900.862616,0.00018,2]
[393568418,1762805452460,-33735.44607554,0.00018,2]
[393568419,1762805452489,-5319.23503509,0.00018,2]
[393568420,1762805464227,-252.0061964,0.00039624,120]
[393568421,1762805464257,-500.0,0.00039624,120]
[393568422,1762805464284,-500.0,0.00039624,120]
[393568423,1762805464313,-574.42120302,0.00039624,120]
[393568424,1762805464342,-500.0,0.00039624,120]
[393568425,1762805464369,-500.0,0.00039624,120]
[393568426,1762805464398,-500.0,0.00039624,120]
[393568427,1762805464427,-500.0,0.00039624,120]
[393568428,1762805464455,-500.0,0.00039624,120]
[393568429,1762805464484,-500.0,0.00039624,120]
[393568430,1762805464513,-500.0,0.00039624,120]
[393568431,1762805464545,-385.06853213,0.00039624,120]
[393568432,1762805464574,-500.0,0.00039624,120]
[393568433,1762805464602,-500.0,0.00039624,120]
[393568434,1762805464632,-500.0,0.00039624,120]
[393568435,1762805464667,-248.96,0.00039624,120]
[393568436,1762805464705,-505.81335964,0.00039624,120]
[393568437,1762805464737,-500.0,0.00039624,120]
[393568438,1762805464768,-165.10637731,0.00039624,120]
[393568439,1762805464796,-500.0,0.00039624,120]
[393568440,1762805464823,-500.0,0.00039624,120]
[393568441,1762805464851,-500.0,0.00039624,120]
[393568442,1762805464881,-191.6683779,0.00039624,120]
[393568443,1762805464912,-500.0,0.00039624,120]
[393568444,1762805464940,-500.0,0.00039624,120]
[393568445,1762805464968,-500.0,0.00039624,120]
[393568446,1762805464999,-500.0,0.00039624,120]
[393568447,1762805465278,-500.0,0.00039624,120]
[393568448,1762805465313,-500.0,0.00039624,120]
[393568449,1762805465342,-500.0,0.00039624,120]
[393568450,1762805465370,-500.0,0.00039624,120]
[393568451,1762805465399,-500.0,0.00039624,120]
[393568452,1762805465426,-183.34372565,0.00039624,120]
[393568453,1762805465453,-338.24026349,0.00039624,120]
[393568454,1762805465483,-519.81017027,0.00039624,120]
[393568455,1762805465511,-265.572321,0.00039624,120]
[393568456,1762805465538,-500.0,0.00039624,120]
[393568457,1762805465565,-220.25703841,0.00039624,120]
[393568458,1762805465592,-649.19417324,0.00039624,120]
[393568459,1762805465618,-244.39779714,0.00039624,120]
[393568460,1762805465650,-500.0,0.00039624,120]
[393568461,1762805465680,-500.0,0.00039624,120]
[393568462,1762805465712,-518.48,0.00039624,120]
[393568463,1762805465741,-1006.06,0.00039624,120]
[393568464,1762805465769,-1006.06,0.00039624,120]
[393568465,1762805465798,-1006.06,0.00039624,120]
[393568466,1762805465826,-1006.06,0.00039624,120]
[393568467,1762805465854,-1006.06,0.00039624,120]
[393568468,1762805465882,-1006.06,0.00039624,120]
[393568469,1762805465910,-820.03,0.00039624,120]
[393568470,1762805465937,-1006.06,0.00039624,120]
[393568471,1762805465964,-820.03,0.00039624,120]
[393568472,1762805465994,-1006.06,0.00039624,120]
[393568473,1762805466023,-820.03,0.00039624,120]
[393568474,1762805466051,-512.66929021,0.00039624,120]
[393568475,1762805466088,-1006.06,0.00039624,120]
[393568476,1762805466115,-820.03,0.00039624,120]
[393568477,1762805466143,-1006.06,0.00039624,120]
[393568478,1762805466170,-820.03,0.00039624,120]
[393568479,1762805466198,-1006.06,0.00039624,120]
[393568480,1762805466224,-820.03,0.00039624,120]
[393568481,1762805466255,-1006.06,0.00039624,120]
[393568482,1762805466282,-500.0,0.00039624,120]
[393568483,1762805466309,-820.03,0.00039624,120]
[393568484,1762805466337,-1006.06,0.00039624,120]
[393568485,1762805466363,-163.90841339,0.00039624,120]
[393568486,1762805466390,-820.03,0.00039624,120]
[393568487,1762805466417,-1006.06,0.00039624,120]
[393568488,1762805466443,-820.03,0.00039624,120]
[393568489,1762805466470,-1006.06,0.00039624,120]
[393568490,1762805466498,-820.03,0.00039624,120]
[393568491,1762805466525,-820.03,0.00039624,120]
[393568492,1762805466552,-820.03,0.00039624,120]
[393568493,1762805466579,-1006.06,0.00039624,120]
[393568494,1762805466605,-820.03,0.00039624,120]
[393568495,1762805466633,-1006.06,0.00039624,120]
[393568496,1762805466660,-820.03,0.00039624,120]
[393568497,1762805466688,-1006.06,0.00039624,120]
[393568498,1762805466716,-500.0,0.00039624,120]
[393568499,1762805466743,-820.03,0.00039624,120]
[393568500,1762805466770,-1006.06,0.00039624,120]
[393568501,1762805466798,-500.0,0.00039624,120]
[393568502,1762805466829,-820.03,0.00039624,120]
[393568503,1762805466860,-1006.06,0.00039624,120]
[393568504,1762805466889,-500.0,0.00039624,120]
[393568505,1762805466918,-820.03,0.00039624,120]
[393568506,1762805466946,-1006.06,0.00039624,120]
[393568507,1762805466973,-525.66821996,0.00039624,120]
[393568508,1762805467000,-500.0,0.00039624,120]
[393568509,1762805467030,-500.0,0.00039624,120]
[393568510,1762805467060,-820.03,0.00039624,120]
[393568511,1762805467092,-1006.06,0.00039624,120]
[393568512,1762805467122,-389.17,0.00039624,120]
[393568513,1762805467151,-500.0,0.00039624,120]
[393568514,1762805467179,-820.03,0.00039624,120]
[393568515,1762805467207,-1006.06,0.00039624,120]
[393568516,1762805467236,-820.03,0.00039624,120]
[393568517,1762805467264,-500.0,0.00039624,120]
[393568518,1762805467292,-1006.22159947,0.00039624,120]
[393568519,1762805467321,-500.0,0.00039624,120]
[393568520,1762805467348,-820.03,0.00039624,120]
[393568521,1762805467375,-500.0,0.00039624,120]
[393568522,1762805467402,-820.03,0.00039624,120]
[393568523,1762805467429,-820.03,0.00039624,120]
[393568524,1762805467457,-500.0,0.00039624,120]
[393568525,1762805467485,-395.2700161,0.00039624,120]
[393568526,1762805467514,-820.17443986,0.00039624,120]
[393568527,1762805467542,-502.41008923,0.00039624,120]
[393568528,1762805467569,-500.0,0.00039624,120]
[393568529,1762805467596,-575.68510552,0.00039624,120]
[393568530,1762805467623,-516.92924799,0.00039624,120]
[393568531,1762805467652,-634.4073071,0.00039624,120]
[393568532,1762805467680,-500.0,0.00039624,120]
[393568533,1762805467708,-213.45938673,0.00039624,120]
[393568534,1762805467736,-517.13477283,0.00039624,120]
[393568535,1762805467764,-500.0,0.00039624,120]
[393568536,1762805467790,-223.32899946,0.00039624,120]
[393568537,1762805467817,-535.85058785,0.00039624,120]
[393568538,1762805467844,-627.41344406,0.00039624,120]
[393568539,1762805467870,-500.0,0.00039624,120]
[393568540,1762805467897,-500.0,0.00039624,120]
[393568541,1762805467926,-500.0,0.00039624,120]
[393568542,1762805467954,-500.0,0.00039624,120]
[393568543,1762805467981,-591.21967003,0.00039624,120]
[393568544,1762805468013,-500.0,0.00039624,120]
[393568545,1762805468196,-282.85317143,0.00039624,120]
[393568546,1762805468225,-500.0,0.00039624,120]
[393568547,1762805468258,-500.0,0.00039624,120]
[393568548,1762805468288,-367.28563657,0.00039624,120]
[393568549,1762805468316,-162.36328859,0.00039624,120]
[393568550,1762805468353,-500.0,0.00039624,120]
[393568551,1762805468381,-269.13569024,0.00039624,120]
[393568552,1762805468408,-500.0,0.00039624,120]
[393568553,1762805468435,-572.80868045,0.00039624,120]
[393568554,1762805468462,-536.75983101,0.00039624,120]
[393568555,1762805468490,-500.0,0.00039624,120]
[393568556,1762805468517,-500.0,0.00039624,120]
[393568557,1762805468544,-580.7475619,0.00039624,120]
[393568558,1762805468571,-500.0,0.00039624,120]
[393568559,1762805468597,-611.5236733,0.00039624,120]
[393568560,1762805468624,-500.0,0.00039624,120]
[393568561,1762805468650,-592.78881809,0.00039624,120]
[393568562,1762805468677,-503.15395143,0.00039624,120]
[393568563,1762805468703,-500.0,0.00039624,120]
[393568564,1762805468729,-633.68835987,0.00039624,120]
[393568565,1762805468757,-500.0,0.00039624,120]
[393568566,1762805468783,-500.0,0.00039624,120]
[393568567,1762805468809,-500.0,0.00039624,120]
[393568568,1762805468836,-188.17477925,0.00039624,120]
[393568569,1762805468863,-549.15349493,0.00039624,120]
[393568570,1762805468888,-500.0,0.00039624,120]
[393568571,1762805468915,-500.0,0.00039624,120]
[393568572,1762805468941,-500.0,0.00039624,120]
[393568573,1762805468969,-500.0,0.00039624,120]
[393568574,1762805468997,-500.0,0.00039624,120]
[393568575,1762805469024,-500.0,0.00039624,120]
[393568576,1762805469050,-500.0,0.00039624,120]
[393568577,1762805469081,-500.0,0.00039624,120]
[393568578,1762805469110,-500.0,0.00039624,120]
[393568579,1762805469138,-500.0,0.00039624,120]
[393568580,1762805469167,-500.0,0.00039624,120]
[393568581,1762805469197,-500.0,0.00039624,120]
[393568582,1762805469226,-212.77041638,0.00039624,120]
[393568583,1762805469256,-568.09670039,0.00039624,120]
[393568584,1762805469285,-505.89474478,0.00039624,120]
[393568585,1762805469314,-500.0,0.00039624,120]
[393568586,1762805469343,-568.8534356,0.00039624,120]
[393568587,1762805469373,-500.0,0.00039624,120]
[393568588,1762805469401,-500.0,0.00039624,120]
[393568589,1762805469428,-500.0,0.00039624,120]
[393568590,1762805469454,-500.0,0.00039624,120]
[393568591,1762805469481,-163.01991083,0.00039624,120]
[393568592,1762805469509,-500.0,0.00039624,120]
[393568593,1762805469536,-649.11521068,0.00039624,120]
[393568594,1762805469562,-591.82038121,0.00039624,120]
[393568595,1762805469588,-500.0,0.00039624,120]
[393568596,1762805469614,-533.71002997,0.00039624,120]
[393568597,1762805469641,-513.16,0.00039624,120]
[393568598,1762805469676,-500.0,0.00039624,120]
[393568599,1762805469704,-529.63570218,0.00039624,120]
[393568600,1762805469730,-500.0,0.00039624,120]
[393568601,1762805469758,-500.0,0.00039624,120]
[393568602,1762805469783,-151.0733746,0.00039624,120]
[393568603,1762805469809,-500.0,0.00039624,120]
[393568604,1762805469835,-500.0,0.00039624,120]
[393568605,1762805469861,-500.0,0.00039624,120]
[393568606,1762805469887,-500.0,0.00039624,120]
[393568607,1762805469912,-500.0,0.00039624,120]
[393568608,1762805469935,-500.0,0.00039624,120]
[393568609,1762805469961,-500.0,0.00039624,120]
[393568610,1762805469989,-500.0,0.00039624,120]
[393568611,1762805470014,-500.0,0.00039624,120]
[393568612,1762805470040,-500.0,0.00039624,120]
[393568613,1762805470067,-500.0,0.00039624,120]
[393568614,1762805470093,-500.0,0.00039624,120]
[393568615,1762805470120,-500.0,0.00039624,120]
[393568616,1762805470146,-184.46005412,0.00039624,120]
[393568617,1762805470172,-547.8122452,0.00039624,120]
[393568618,1762805470199,-500.0,0.00039624,120]
[393568619,1762805470225,-500.0,0.00039624,120]
[393568620,1762805470256,-500.0,0.00039624,120]
[393568621,1762805470283,-500.0,0.00039624,120]
[393568622,1762805470310,-500.0,0.00039624,120]
[393568623,1762805470337,-500.0,0.00039624,120]
[393568624,1762805470364,-500.0,0.00039624,120]
[393568625,1762805470390,-500.0,0.00039624,120]
[393568626,1762805470416,-500.0,0.00039624,120]
[393568627,1762805470442,-500.0,0.00039624,120]
[393568628,1762805470470,-500.0,0.00039624,120]
[393568629,1762805470496,-500.0,0.00039624,120]
[393568630,1762805470522,-412.48990085,0.00039624,120]
[393568631,1762805470548,-500.0,0.00039624,120]
[393568632,1762805470575,-423.26966164,0.00039624,120]
[393568633,1762805470601,-542.37,0.00039624,120]
[393568634,1762805470628,-542.37,0.00039624,120]
[393568635,1762805470655,-542.37,0.00039624,120]
[393568636,1762805470685,-542.37,0.00039624,120]
[393568637,1762805470712,-542.37,0.00039624,120]
[393568638,1762805470741,-542.37,0.00039624,120]
[393568639,1762805470768,-500.0,0.00039624,120]
[393568640,1762805470797,-542.37,0.00039624,120]
[393568641,1762805470828,-500.0,0.00039624,120]
[393568642,1762805470857,-542.37,0.00039624,120]
[393568643,1762805470886,-165.90863545,0.00039624,120]
[393568644,1762805470914,-542.37,0.00039624,120]
[393568645,1762805470942,-542.37,0.00039624,120]
[393568646,1762805470969,-557.16529708,0.00039624,120]
[393568647,1762805470997,-542.37,0.00039624,120]
[393568648,1762805471184,-500.0,0.00039624,120]
[393568649,1762805471215,-542.37,0.00039624,120]
[393568650,1762805471244,-542.37,0.00039624,120]
[393568651,1762805471274,-542.37,0.00039624,120]
[393568652,1762805471307,-542.37,0.00039624,120]
[393568653,1762805471349,-542.37,0.00039624,120]
[393568654,1762805471378,-542.37,0.00039624,120]
[393568655,1762805471404,-542.37,0.00039624,120]
[393568656,1762805471430,-500.0,0.00039624,120]
[393568657,1762805471458,-542.37,0.00039624,120]
[393568658,1762805471485,-542.37,0.00039624,120]
[393568659,1762805471512,-542.37,0.00039624,120]
[393568660,1762805471540,-542.37,0.00039624,120]
[393568661,1762805471567,-542.37,0.00039624,120]
[393568662,1762805471594,-542.58,0.00039624,120]
[393568663,1762805471620,-500.0,0.00039624,120]
[393568664,1762805471647,-155.5728907,0.00039624,120]
[393568665,1762805471674,-500.0,0.00039624,120]
[393568666,1762805471701,-489.29336946,0.00039624,120]
[393568667,1762805471727,-587.85863355,0.00039624,120]
[393568668,1762805471753,-500.0,0.00039624,120]
[393568669,1762805471779,-500.0,0.00039624,120]
[393568670,1762805471805,-158.33633909,0.00039624,120]
[393568671,1762805471831,-1050.4,0.00039624,120]
[393568672,1762805471858,-1050.4,0.00039624,120]
[393568673,1762805471885,-1050.4,0.00039624,120]
[393568674,1762805471912,-1050.4,0.00039624,120]
[393568675,1762805471939,-1050.4,0.00039624,120]
[393568676,1762805471965,-1050.4,0.00039624,120]
[393568677,1762805471992,-1050.4,0.00039624,120]
[393568678,1762805472018,-1050.4,0.00039624,120]
[393568679,1762805472045,-500.0,0.00039624,120]
[393568680,1762805472074,-1050.4,0.00039624,120]
[393568681,1762805472101,-1050.4,0.00039624,120]
[393568682,1762805472128,-509.68631176,0.00039624,120]
[393568683,1762805472156,-1050.4,0.00039624,120]
[393568684,1762805472185,-1050.4,0.00039624,120]
[393568685,1762805472212,-1050.4,0.00039624,120]
[393568686,1762805472241,-517.61400693,0.00039624,120]
[393568687,1762805472270,-1050.4,0.00039624,120]
[393568688,1762805472296,-1050.4,0.00039624,120]
[393568689,1762805472322,-1050.4,0.00039624,120]
[393568690,1762805472348,-595.27570915,0.00039624,120]
[393568691,1762805472374,-1050.4,0.00039624,120]
[393568692,1762805472400,-500.0,0.00039624,120]
[393568693,1762805472425,-1050.4,0.00039624,120]
[393568694,1762805472451,-1050.4,0.00039624,120]
[393568695,1762805472476,-239.262,0.00039624,120]
[393568696,1762805472502,-1050.4,0.00039624,120]
[393568697,1762805472527,-1050.4,0.00039624,120]
[393568698,1762805472552,-1050.4,0.00039624,120]
[393568699,1762805472576,-1050.4,0.00039624,120]
[393568700,1762805472602,-1050.59268642,0.00039624,120]
[393568701,1762805472625,-500.0,0.00039624,120]
[393568702,1762805472651,-552.36297032,0.00039624,120]
[393568703,1762805472676,-597.84738392,0.00039624,120]
[393568704,1762805472705,-473.53428442,0.00039624,120]
[393568705,1762805472731,-500.0,0.00039624,120]
[393568706,1762805472757,-500.0,0.00039624,120]
[393568707,1762805472784,-500.0,0.00039624,120]
[393568708,1762805472811,-500.0,0.00039624,120]
[393568709,1762805472842,-500.0,0.00039624,120]
[393568710,1762805472868,-500.0,0.00039624,120]
[393568711,1762805472895,-500.0,0.00039624,120]
[393568712,1762805472920,-500.0,0.00039624,120]
[393568713,1762805472946,-500.0,0.00039624,120]
[393568714,1762805472973,-500.0,0.00039624,120]
[393568715,1762805473002,-500.0,0.00039624,120]
[393568716,1762805473030,-277.32358957,0.00039624,120]
[393568717,1762805473059,-500.0,0.00039624,120]
[393568718,1762805473091,-578.87342247,0.00039624,120]
[393568719,1762805473118,-500.0,0.00039624,120]
[393568720,1762805473145,-500.0,0.00039624,120]
[393568721,1762805473170,-500.0,0.00039624,120]
[393568722,1762805473196,-500.0,0.00039624,120]
[393568723,1762805473225,-500.0,0.00039624,120]
[393568724,1762805473251,-167.74972665,0.00039624,120]
[393568725,1762805473277,-500.0,0.00039624,120]
[393568726,1762805473304,-180.63922471,0.00039624,120]
[393568727,1762805473330,-180.24903341,0.00039624,120]
[393568728,1762805473356,-460.0,0.00039624,120]
[393568729,1762805473383,-500.0,0.00039624,120]
[393568730,1762805473409,-201.41345431,0.00039624,120]
[393568731,1762805473435,-543.97236894,0.00039624,120]
[393568732,1762805473460,-500.0,0.00039624,120]
[393568733,1762805473486,-233.33609739,0.00039624,120]
[393568734,1762805473514,-514.59160823,0.00039624,120]
[393568735,1762805473540,-500.0,0.00039624,120]
[393568736,1762805473566,-500.0,0.00039624,120]
[393568737,1762805473592,-500.0,0.00039624,120]
[393568738,1762805473619,-257.02612711,0.00039624,120]
[393568739,1762805473645,-500.0,0.00039624,120]
[393568740,1762805473672,-500.0,0.00039624,120]
[393568741,1762805473698,-500.0,0.00039624,120]
[393568742,1762805473724,-500.0,0.00039624,120]
[393568743,1762805473749,-608.09748224,0.00039624,120]
[393568744,1762805473776,-500.0,0.00039624,120]
[393568745,1762805473802,-500.0,0.00039624,120]
[393568746,1762805473830,-500.0,0.00039624,120]
[393568747,1762805474009,-386.91666277,0.00039624,120]
[393568748,1762805474039,-263.18515126,0.00039624,120]
[393568749,1762805474069,-500.0,0.00039624,120]
[393568750,1762805474096,-500.0,0.00039624,120]
[393568751,1762805474127,-500.0,0.00039624,120]
[393568752,1762805474156,-500.0,0.00039624,120]
[393568753,1762805474185,-500.0,0.00039624,120]
[393568754,1762805474214,-500.0,0.00039624,120]
[393568755,1762805474244,-500.0,0.00039624,120]
[393568756,1762805474272,-500.0,0.00039624,120]
[393568757,1762805474300,-500.0,0.00039624,120]
[393568758,1762805474327,-500.0,0.00039624,120]
[393568759,1762805474356,-641.07,0.00039624,120]
[393568760,1762805474383,-500.0,0.00039624,120]
[393568761,1762805474410,-641.07,0.00039624,120]
[393568762,1762805474437,-500.0,0.00039624,120]
[393568763,1762805474465,-641.07,0.00039624,120]
[393568764,1762805474492,-500.0,0.00039624,120]
[393568765,1762805474518,-399.48048112,0.00039624,120]
[393568766,1762805474545,-364.08357502,0.00039624,120]
[393568767,1762805474571,-500.0,0.00039624,120]
[393568768,1762805474597,-641.07,0.00039624,120]
[393568769,1762805474624,-500.0,0.00039624,120]
[393568770,1762805474651,-641.07,0.00039624,120]
[393568771,1762805474679,-500.0,0.00039624,120]
[393568772,1762805474707,-641.07,0.00039624,120]
[393568773,1762805474734,-489.76383483,0.00039624,120]
[393568774,1762805474762,-641.07,0.00039624,120]